[Event "Romanian Team Blitz Open 2022"]
[Site "Sebes"]
[Date "2022.12.04"]
[Round "1.21"]
[White "Costachi, Mihnea"]
[Black "Miron, Toma"]
[Result "1-0"]
[ECO "D11"]
[WhiteElo "2476"]
[BlackElo "2188"]
[Annotator "TA"]
[PlyCount "34"]
[EventDate "2022.12.04"]
[EventType "blitz"]
[EventCountry "ROU"]
[SourceTitle "playchess.com"]
[Source "ChessBase"]
[SourceQuality "1"]
[TimeControl "180+2"]

{[%evp 9,34,70,83,52,69,66,234,234,391,133,445,452,449,443,448,277,281,278,239,97,159,158,159,2,102,96,105]} 1. d4 {[%emt 0:00:02]} d5 {[%emt 0:00:09]} 2. c4 {[%emt 0:00:02]} dxc4 {[%emt 0:00:02]} 3. Nf3 {[%emt 0:00:01]} c6 {[%emt 0:00:03]} 4. e3 {[%emt 0:00:05]} b5 {[%emt 0:00:03]} 5. a4 {[%emt 0:00:02]} Bb7 {[%emt 0:00:03]} 6. b3 {[%emt 0:00:03] D11: Slav Defence: 3 Nf3 sidelines and 3...Nf6 4 e3 Bg4.} cxb3 {[%emt 0:00:15]} 7. axb5 {[%emt 0:00:01]} (7. Qxb3 a6 $11) 7... cxb5 $2 {[%emt 0:00:05]} (7... e6 $14) 8. Bxb5+ $18 {[%emt 0:00:04] White is clearly better.} (8. Qxb3 a6 $11) 8... Nd7 $2 {[%emt 0:00:10]} (8... Bc6 {was called for.}) 9. Qxb3 $2 {[%emt 0:00:07] [#]} (9. Ne5 $18 {is the precise move to win.} Ngf6 10. Qxb3) 9... e6 $146 {[%emt 0:00:44][%mdl 8192]} (9... Bxf3 $16 {is a better chance.} 10. gxf3 Ngf6) ({Predecessor:} 9... Bxf3 10. gxf3 g6 11. O-O Bg7 12. Qa4 Ngf6 13. Bd2 O-O 14. Bb4 Nb6 15. Qa3 Qd5 {1-0 (69) Bentley,B (1861)-Sponga,G (1772) Edmonton 2015}) 10. Ne5 {[%emt 0:00:01]} Bd5 {[%emt 0:00:32]} 11. Qa4 {[%emt 0:00:10][%cal Rb5d7]} (11. Bxd7+ Qxd7 12. Nxd7 Bxb3 $18) 11... Ngf6 {[%emt 0:00:03]} 12. O-O {[%emt 0:00:29]} a6 {[%emt 0:00:33]} 13. Bxd7+ {[%emt 0:00:24]} ({Not} 13. Bxa6 Qb6 $14) 13... Nxd7 {[%emt 0:00:04]} 14. Ba3 {[%emt 0:00:03]} (14. Nd2 $18 {and White stays clearly on top.}) 14... Bxa3 {[%emt 0:00:16]} (14... f6 $142) 15. Nxa3 $16 {[%emt 0:00:07][%cal Oe3e4] Strongly threatening e4!} ({Don't do} 15. Rxa3 $6 f6 $16) 15... f6 {[%emt 0:00:06] [#] Prevents e4.} 16. Nc6 {[%emt 0:00:09] White is much more active.} (16. e4 $1 $16 {[%cal Re4d5]} Bxe4 {[#]} 17. Nac4 $1 fxe5 18. Nd6+ Kf8 19. Nxe4) 16... Qc7 {[%emt 0:00:17]} (16... Nb6 $1 $11 17. Qc2 (17. Nxd8+ Nxa4 18. e4 Rxd8 $15) 17... Qd6) 17. Nb4 {[%emt 0:00:20] Pair of Knights!} O-O {[%emt 0:00:11] Weighted Error Value: White=0.64/Black=0.86} 1-0

[Event "Romanian Team Blitz Open 2022"]
[Site "Sebes"]
[Date "2022.12.04"]
[Round "1.22"]
[White "Campian, Cristian"]
[Black "Ileana, George"]
[Result "0-1"]
[ECO "B23"]
[WhiteElo "1998"]
[BlackElo "2343"]
[Annotator "TA"]
[PlyCount "96"]
[EventDate "2022.12.04"]
[EventType "blitz"]
[EventCountry "ROU"]
[SourceTitle "playchess.com"]
[Source "ChessBase"]
[SourceQuality "1"]
[TimeControl "180+2"]

{[%evp 14,96,0,0,0,-60,-64,-62,-62,-97,-84,-123,-65,-71,-53,-84,166,-21,141,147,143,135,264,256,322,184,195,188,213,185,191,184,267,207,177,131,281,166,84,-22,-29,-66,-50,-194,-186,-200,-135,-135,-75,-93,-62,-73,-81,-93,-83,-105,-105,-105,-91,-103,-100,-103,-103,-171,-175,-195,-194,-195,-176,-184,-169,-172,-168,-173,-169,-195,-193,-195,-193,-265,-193,-243,-243,-1097,-1016]} 1. e4 {[%emt 0:00:01]} c5 {[%emt 0:00:01]} 2. Nc3 {[%emt 0:00:02]} d6 {[%emt 0:00:02]} 3. f4 {[%emt 0:00:00]} Nf6 {[%emt 0:00:04]} 4. Nf3 {[%emt 0:00:01]} g6 {[%emt 0:00:01]} 5. Bc4 {[%emt 0:00:04]} Bg7 {[%emt 0:00:03]} 6. O-O {[%emt 0:00:02]} O-O {[%emt 0:00:04]} 7. d3 {[%emt 0:03:06]} Nc6 {[%emt 0:03:01]} 8. a4 {[%emt 0:00:00]} e6 {[%emt 0:00:00][%cal Be7e6,Be6d5][%mdl 32] [#] B23: Closed Sicilian: Lines without g3.} 9. Ne2 $146 {[%emt 0:00:00]} ({White should play} 9. Bb3 $11) ({Predecessor:} 9. Ba2 a6 10. h3 Ne8 11. Qe1 Bd7 12. Qf2 b5 13. e5 c4 14. dxc4 b4 15. Ne4 dxe5 16. fxe5 Nxe5 17. Nxe5 Bxe5 {1-0 (31) Ruzicka,J (2243)-Zima,J (2104) Pardubice 2020}) 9... d5 $15 {[%emt 0:00:00]} 10. exd5 {[%emt 0:00:00]} exd5 {[%emt 0:00:00] Black is slightly better.} 11. Bb3 {[%emt 0:00:00]} Re8 {[%emt 0:00:00]} 12. c3 {[%emt 0:00:00]} Ng4 {[%emt 0:00:00]} (12... c4 $17 13. Ba2 (13. dxc4 Rxe2 14. Qxe2 Qb6+ 15. Be3 Qxb3 $17) 13... Qb6+ 14. d4 Bf5) 13. d4 {[%emt 0:00:00]} c4 {[%emt 0:00:00]} 14. Bc2 {[%emt 0:00:00]} f6 $2 {[%emt 0:00:00] Inhibits Ne5. Black is much more active.} (14... Qe7 $1 $17 {[%cal Re7e2]} 15. Qd2 Qxe2) 15. Ng3 {[%emt 0:00:00]} (15. f5 $1 $18 {[%cal Rf5g6]}) 15... Ne3 $2 {[%emt 0:00:00]} (15... f5 $1 $11) 16. Bxe3 $16 {[%emt 0:00:00]} Rxe3 {[%emt 0:00:00]} 17. f5 {[%emt 0:00:00]} g5 {[%emt 0:00:00]} (17... Ne7 $16 {keeps fighting.}) 18. Nh5 {[%emt 0:00:00]} Bf8 {[%emt 0:00:00]} 19. Re1 {[%emt 0:00:00]} (19. Qd2 $142 Re8 20. h4 gxh4 21. Qf4) 19... Rxe1+ $18 20. Qxe1 {[%emt 0:00:00] h4 is the strong threat.} Kf7 {[%emt 0:00:00]} 21. Qe2 {[%emt 0:00:00]} Bd7 {[%emt 0:00:00]} 22. Re1 {[%emt 0:00:00]} Bd6 {[%emt 0:00:00]} (22... Qc7 $142) 23. g4 {[%emt 0:00:00] And now Qg2 would win.} Qc7 {[%emt 0:00:00]} ({Weaker is} 23... Kg8 24. h4 Kh8 25. hxg5 fxg5 26. Ne5) 24. Qf2 {[%emt 0:00:00]} ({Better is} 24. Qf1 $18 {[%cal Oh5f6] Strongly threatening Nxf6!} Re8 25. Re6 $1 {[%mdl 512]} Bxe6 26. fxe6+ Ke7 27. Nxg5 $1 {[%mdl 512]} Bxh2+ 28. Kh1) 24... Re8 {[%emt 0:00:00] [#]} (24... Rg8 $16 25. h3 Rf8) 25. Rxe8 {[%emt 0:00:00]} (25. Re6 $142 $1 {[%mdl 512]} Be7 {[#]} 26. h4 $1) 25... Bxe8 {[%emt 0:00:00]} 26. Qe2 {[%emt 0:00:00]} (26. h4 $16 h6 27. b3) 26... Qe7 $11 {[%emt 0:00:00]} 27. Qxe7+ {[%emt 0:00:00]} Nxe7 {[%emt 0:00:00]} (27... Kxe7 {simplifies} 28. Kg2 Bxh5 29. gxh5 Bf4) 28. Kg2 {[%emt 0:00:00]} ({White should try} 28. b4 $15) 28... Nc8 {[%emt 0:00:00]} 29. Ng3 {[%emt 0:00:00]} Nb6 {[%emt 0:00:00]} 30. a5 {[%emt 0:00:00]} Nc8 {[%emt 0:00:00]} (30... Na4 $142 31. Bxa4 Bxa4) 31. h4 {[%emt 0:00:06]} h6 {[%emt 0:00:00]} 32. hxg5 {[%emt 0:00:04]} hxg5 {[%emt 0:00:00]} 33. Nf1 {[%emt 0:00:05]} Bc7 {[%emt 0:00:00]} 34. Ne3 {[%emt 0:00:01]} Ne7 {[%emt 0:00:00]} 35. a6 {[%emt 0:00:02]} b5 {[%emt 0:00:00]} 36. b3 {[%emt 0:00:02]} Bd7 {[%emt 0:00:00]} 37. bxc4 {[%emt 0:00:02]} bxc4 {[%emt 0:00:01]} 38. Nd1 {[%emt 0:00:13]} (38. Nd2 $17) 38... Bb5 $19 {[%emt 0:00:06]} 39. Nb2 {[%emt 0:00:01]} Ba5 {[%emt 0:00:01]} 40. Nd1 {[%emt 0:00:02]} Ke8 {[%emt 0:00:05]} 41. Nd2 {[%emt 0:00:05]} Kd7 {[%emt 0:00:05]} 42. Nb1 {[%emt 0:00:02]} Kd6 {[%emt 0:00:03]} 43. Kf3 {[%emt 0:00:01]} Bxa6 {[%emt 0:00:02]} 44. Ba4 {[%emt 0:00:04]} Bb7 {[%emt 0:00:04]} 45. Ne3 {[%emt 0:00:03]} Bc6 {[%emt 0:00:03]} 46. Bxc6 {[%emt 0:00:02]} (46. Bd1 $142) 46... Nxc6 {[%emt 0:00:01]} 47. Na3 {[%emt 0:00:03]} (47. Ke2 {is a better defense.}) 47... a6 {[%emt 0:00:02]} ({Don't take} 47... Bxc3 48. Nb5+ Kd7 49. Nxc3 Nxd4+ 50. Kg3 $16) 48. Nac2 $2 {[%emt 0:00:01]} (48. Nd1) 48... Bxc3 {[%emt 0:00:03] Weighted Error Value: White=0.56/Black=0.46} 0-1

[Event "Romanian Team Blitz Open 2022"]
[Site "Sebes"]
[Date "2022.12.04"]
[Round "1.23"]
[White "Negrean, Andrei"]
[Black "Sandru, Nicolae"]
[Result "1-0"]
[ECO "D30"]
[WhiteElo "1991"]
[BlackElo "1647"]
[Annotator "TA"]
[PlyCount "83"]
[EventDate "2022.12.04"]
[EventType "blitz"]
[EventCountry "ROU"]
[SourceTitle "playchess.com"]
[Source "ChessBase"]
[SourceQuality "1"]
[TimeControl "180+2"]

{[%evp 9,83,15,24,16,24,27,37,15,47,39,45,42,63,60,52,55,95,87,109,110,115,102,116,92,137,89,86,71,106,106,119,112,129,108,139,138,140,146,151,151,198,201,201,146,155,152,156,159,184,166,166,166,426,431,421,306,326,279,427,409,480,474,480,456,959,891,772,739,990,893,2058,1791,29989,29984,29984,29985]} 1. d4 {[%emt 0:00:01]} d5 {[%emt 0:00:01]} 2. c4 {[%emt 0:00:01]} e6 {[%emt 0:00:02]} 3. Nf3 {[%emt 0:00:00]} Nf6 {[%emt 0:00:02]} 4. g3 {[%emt 0:00:01]} c6 {[%emt 0:00:05]} 5. Nbd2 {[%emt 0:00:01]} Bd6 {[%emt 0:00:02]} 6. Bg2 {[%emt 0:00:02] D30: Queen's Gambit Declined: Systems without Nc3.} O-O {[%emt 0:00:02]} 7. O-O {[%emt 0:00:02]} Re8 {[%emt 0:00:06]} 8. Qc2 {[%emt 0:00:04] [#] White is slightly better.} Bf8 $146 {[%emt 0:00:02]} ({Predecessor:} 8... Nbd7 9. e4 dxe4 10. Nxe4 Nxe4 11. Qxe4 e5 12. Ng5 Nf6 13. Qh4 exd4 14. Qxd4 Be5 15. Qh4 Bf5 16. Nf3 Bc7 17. Bg5 h6 18. Bxf6 Qxf6 19. Qxf6 gxf6 {0-1 (45) Kim,S (2295)-Jakubowska,A (2106) Chess.com INT 2022}) 9. e4 {[%emt 0:00:06]} Nxe4 {[%emt 0:00:02]} 10. Nxe4 {[%emt 0:00:01]} dxe4 {[%emt 0:00:01]} 11. Qxe4 {[%emt 0:00:01]} Nd7 {[%emt 0:00:02][%cal Oe6e5]} 12. Bf4 {[%emt 0:00:02] Inhibits e5.} Nf6 {[%emt 0:00:02]} 13. Qe2 {[%emt 0:00:02]} Bd7 {[%emt 0:00:06]} 14. Rfd1 {[%emt 0:00:06]} g6 {[%emt 0:00:03]} 15. Rac1 {[%emt 0:00:25]} Bg7 {[%emt 0:00:01]} 16. Be5 {[%emt 0:00:01]} Nh5 {[%emt 0:00:04]} 17. Bxg7 {[%emt 0:00:01]} (17. g4 $142 Nf6 18. Nd2) 17... Nxg7 $16 {[%emt 0:00:01]} 18. Ne5 {[%emt 0:00:05]} Rc8 {[%emt 0:00:06]} 19. c5 {[%emt 0:00:01]} Rf8 {[%emt 0:00:18]} 20. Nc4 {[%emt 0:00:05] White is much more active.} Ne8 {[%emt 0:00:01]} 21. b4 {[%emt 0:00:05]} Qf6 {[%emt 0:00:10]} 22. Qe5 {[%emt 0:00:02]} Rc7 {[%emt 0:00:16]} 23. h4 {[%emt 0:00:06]} Bc8 {[%emt 0:00:04]} 24. a4 {[%emt 0:00:13]} Qxe5 {[%emt 0:00:02]} (24... a6 $16 25. h5 Qd8) 25. dxe5 $18 {[%emt 0:00:02]} Ng7 {[%emt 0:00:04]} 26. Be4 {[%emt 0:00:08]} Nf5 {[%emt 0:00:10]} 27. Rd2 {[%emt 0:00:13]} Ne7 {[%emt 0:00:01]} 28. Nd6 {[%emt 0:00:09]} Nd5 {[%emt 0:00:01]} 29. b5 {[%emt 0:00:04]} Kg7 {[%emt 0:00:17]} 30. f4 {[%emt 0:00:16]} f5 $2 {[%emt 0:00:01] [#]} (30... h5 {was called for.} 31. Rb2 Rd7) 31. Bxd5 {[%emt 0:00:03]} exd5 {[%emt 0:00:13]} 32. Kf2 {[%emt 0:00:15]} Be6 {[%emt 0:00:01]} 33. Rb2 {[%emt 0:00:06]} Bg8 {[%emt 0:00:04]} (33... Kh6 $142 34. a5 a6) 34. Ke3 {[%emt 0:00:13]} Rd8 {[%emt 0:00:07]} 35. bxc6 {[%emt 0:00:05]} bxc6 {[%emt 0:00:02]} 36. Rcb1 {[%emt 0:00:01]} Rdd7 {[%emt 0:00:04]} (36... Rcd7 $142 37. a5 Kh6) 37. Kd4 {[%emt 0:00:08]} Bf7 {[%emt 0:00:02]} 38. Rb8 {[%emt 0:00:04]} h6 {[%emt 0:00:07]} 39. a5 {[%emt 0:00:01]} Bg8 {[%emt 0:00:06]} 40. Ne8+ {[%emt 0:00:01]} Kh7 {[%emt 0:00:10]} 41. Nxc7 {[%emt 0:00:03]} Rxc7 {[%emt 0:00:01]} 42. R8b7 {[%emt 0:00:01] Weighted Error Value: White=0.12 (very precise) /Black=0.56} 1-0

[Event "Romanian Team Blitz Open 2022"]
[Site "Sebes"]
[Date "2022.12.04"]
[Round "1.24"]
[White "Tarciuc, Ianis-Mihai"]
[Black "Tampea, Radu"]
[Result "0-1"]
[ECO "A15"]
[WhiteElo "1642"]
[BlackElo "2110"]
[Annotator "TA"]
[PlyCount "61"]
[EventDate "2022.12.04"]
[EventType "blitz"]
[EventCountry "ROU"]
[SourceTitle "playchess.com"]
[Source "ChessBase"]
[SourceQuality "1"]
[TimeControl "180+2"]

{[%evp 9,61,5,35,27,34,7,36,30,50,22,27,32,582,591,683,684,654,572,660,645,637,633,691,638,674,637,692,686,690,665,824,625,593,-20,-21,-21,0,-29,0,0,0,-14,-11,-18,-20,-24,-22,-24,-31,-179,-172,-29978,-29979,-29979]} 1. c4 {[%emt 0:00:01]} e6 {[%emt 0:00:01]} 2. g3 {[%emt 0:00:02]} d5 {[%emt 0:00:00]} 3. Bg2 {[%emt 0:00:01]} Nf6 {[%emt 0:00:01]} 4. b3 {[%emt 0:00:05]} a6 {[%emt 0:00:02]} 5. Nf3 {[%emt 0:00:05]} b6 {[%emt 0:00:02]} 6. O-O {[%emt 0:00:02] A15: English Opening: 1...Nf6.} Bb7 {[%emt 0:00:00]} 7. Nc3 {[%emt 0:00:03]} Nbd7 {[%emt 0:00:01]} (7... d4 $5 {[%cal Rd4c3]} 8. Na4 Be7 $11) 8. Bb2 {[%emt 0:00:02] [#] White is slightly better.} Be7 $146 {[%emt 0:00:03]} ({Predecessor:} 8... dxc4 9. bxc4 c5 10. e3 Bd6 11. Qe2 O-O 12. Ne1 Bxg2 13. Kxg2 Be5 14. f4 Bxc3 15. Bxc3 {½-½ (68) Schitco,I (2462)-Gorodetzky,D (2461) Arad 2019}) 9. d4 {[%emt 0:00:02]} O-O {[%emt 0:00:02]} 10. Ne5 dxc4 $2 {[%emt 0:00:19][%mdl 8192]} 11. Bxb7 $18 {[%emt 0:00:34][%cal Bg2b7,Bb7a6,Ba6d3][%mdl 32] [#] Strongly threatening Nc6.} Rb8 {[%emt 0:02:53]} 12. Nc6 {[%emt 0:00:15]} Qe8 {[%emt 0:00:00]} 13. Nxb8 {[%emt 0:00:02]} Qxb8 {[%emt 0:00:00]} 14. Bxa6 {[%emt 0:00:21]} cxb3 {[%emt 0:00:00]} 15. Qxb3 {[%emt 0:00:02]} c5 {[%emt 0:00:00]} 16. Na4 {[%emt 0:00:02]} h5 {[%emt 0:00:00]} 17. dxc5 {[%emt 0:00:29]} Nxc5 {[%emt 0:00:00]} 18. Nxc5 {[%emt 0:00:03]} Bxc5 {[%emt 0:00:00]} 19. Bd3 {[%emt 0:00:18]} h4 {[%emt 0:00:00]} 20. Ba3 {[%emt 0:00:19]} hxg3 {[%emt 0:00:00]} 21. hxg3 {[%emt 0:00:07]} (21. Bxc5 $18 gxh2+ 22. Kh1 Qa8+ 23. f3 bxc5 24. Rf2) 21... Qxg3+ $11 {[%emt 0:00:00]} 22. Kh1 {[%emt 0:00:51]} Qh3+ {[%emt 0:00:22][%mdl 1024] Black has compensation.} 23. Kg1 {[%emt 0:00:00][%cal Od3e4]} Qg3+ {[%emt 0:00:00]} (23... Ng4 $5 24. Bh7+ Qxh7 $11) 24. Kh1 {[%emt 0:00:00]} Qh3+ {[%emt 0:00:00]} 25. Kg1 {[%emt 0:00:00][%cal Od3e4]} Ng4 $40 {[%emt 0:00:00][%csl Gg4][%cal Rh3h2][%mdl 128] White needs to defend precisely.} 26. Bh7+ $1 Qxh7 {[%emt 0:00:00][%csl Gg4][%cal Rh7h2]} 27. Qg3 {[%emt 0:00:01] Prevents Qh2+. Hoping for Bxc5.} Bxa3 {[%emt 0:00:00] Chess con chili.} 28. Qxg4 {[%emt 0:00:02]} f5 $1 {[%emt 0:00:00]} 29. Qg3 {[%emt 0:00:06] [#]} ({White has to play} 29. Qf3 $1 $15 Rf6 30. Rfe1 (30. Qxa3 $2 {is the wrong capture.} Rg6+ $19)) 29... Rf6 $1 $19 {[%emt 0:00:00][%mdl 64]} 30. Qh2 {[%emt 0:00:04]} (30. Qxa3 $19 Rg6+ 31. Qg3) 30... Rg6+ {[%emt 0:00:00]} 31. Kh1 {[%emt 0:00:05] Quite a comeback for Black.   Weighted Error Value: White=0.88/Black=0.50} 0-1

[Event "Romanian Team Blitz Open 2022"]
[Site "Sebes"]
[Date "2022.12.04"]
[Round "1.25"]
[White "Soltanici, Ruslan"]
[Black "Butuza, Stefan Aurelian"]
[Result "1-0"]
[ECO "C83"]
[WhiteElo "2357"]
[BlackElo "1529"]
[Annotator "TA"]
[PlyCount "55"]
[EventDate "2022.12.04"]
[EventType "blitz"]
[EventCountry "ROU"]
[SourceTitle "playchess.com"]
[Source "ChessBase"]
[SourceQuality "1"]
[TimeControl "180+2"]

{[%evp 22,55,62,56,66,61,274,86,287,155,158,32,389,402,444,429,400,304,288,274,2752,2699,2250,1213,29985,1108,29996,627,1963,1781,29986,29987,29987,29988,29989,1444]} 1. e4 {[%emt 0:00:02]} e5 {[%emt 0:00:00]} 2. Nf3 {[%emt 0:00:01]} Nc6 3. Bb5 a6 {[%emt 0:00:06]} 4. Ba4 {[%emt 0:00:03]} Nf6 {[%emt 0:00:01]} 5. O-O {[%emt 0:00:02]} Nxe4 {[%emt 0:00:02]} 6. d4 {[%emt 0:00:00]} b5 {[%emt 0:00:06]} 7. Bb3 {[%emt 0:00:01]} d5 {[%emt 0:00:01]} 8. dxe5 {[%emt 0:00:01]} Be6 {[%emt 0:00:03]} 9. c3 {[%emt 0:00:02]} Be7 {[%emt 0:00:05]} 10. Nbd2 {[%emt 0:00:06]} Nc5 {[%emt 0:00:05]} 11. Bc2 {[%emt 0:00:02]} O-O {[%emt 0:00:03]} 12. Nb3 {[%emt 0:00:05]} Nxb3 {[%emt 0:00:05] C83: Open Ruy Lopez: 9 c3 Be7.} 13. axb3 {[%emt 0:00:15] [#]} Bc5 $146 {[%emt 0:00:44]} ({Black should try} 13... Qd7 $14) ({Predecessor:} 13... Bg4 14. Re1 Qd7 15. Qd3 g6 16. Bh6 Rfe8 17. Nd4 Bc5 18. Nxc6 Qxc6 19. b4 Be7 20. Qg3 {1-0 (28) Corrales Jimenez,F (2559)-Orlov,G (2466) Chess.com INT 2019}) 14. b4 $2 {[%emt 0:00:21]} (14. Ng5 $1 $18 {and the rest is easy.} g6 15. Nxh7 $1 {[%mdl 512]}) 14... Bb6 $2 {[%emt 0:00:09]} (14... Be7 $16 {was necessary.}) 15. Qd3 {[%emt 0:00:07]} (15. Ng5 $1 $18 g6 16. Nxh7 $1 {[%mdl 512]} Nxe5 17. Nxf8 Qxf8 18. Bf4) 15... g6 $16 {[%emt 0:00:03]} 16. Bg5 $40 {[%emt 0:00:46][%mdl 128] Inhibits d4. White attacks.} (16. Bh6 $16) 16... Qd7 $2 {[%emt 0:00:07][%mdl 8192]} (16... Nxe5 $1 $14 17. Bxd8 Nxd3) 17. Bf6 $18 {[%emt 0:00:03] White threatens Qd2 and mate.} Rfc8 {[%emt 0:00:55]} 18. Qd2 {[%emt 0:00:03] Qh6 would kill now.} Qe8 {[%emt 0:00:04]} 19. Qh6 {[%emt 0:00:14][%csl Gf6][%cal Rh6g7]} Qf8 {[%emt 0:01:01] Against Qg7+} 20. Qh4 {aiming for Ng5.} Nb8 $2 {[%emt 0:00:00]} (20... Re8 21. Rfc1 (21. Ng5 h6 $18) 21... h6) 21. Ng5 {[%emt 0:00:05][%csl Gg5][%cal Rh4h7]} h5 {[%emt 0:00:00]} 22. Nxe6 {[%emt 0:00:04]} fxe6 {[%emt 0:00:00]} 23. Bxg6 {[%emt 0:00:01]} (23. Qg5 $142 Qf7 24. Bxg6 (24. Qxg6+ Qxg6 25. Bxg6 Nd7 $18) 24... Nc6 25. Bxh5+ Kf8 26. Qh6+ Ke8 27. Bxf7+ Kd7 28. Bxe6+ $1 {[%mdl 512]} Kxe6 29. Bg5+ Kf5 30. Qf6+ Ke4 31. Qg6+ Kxe5 32. Rfe1+ Be3 33. Rxe3#) 23... Nd7 {[%emt 0:00:00] [#]} 24. Bxh5 {[%emt 0:00:12]} (24. Bh7+ $142 $1 {[%mdl 512]} Kxh7 25. Qxh5+ Qh6 26. Qf7+ Qg7 27. Qxg7#) 24... Nxf6 {[%emt 0:00:00]} 25. exf6 {[%emt 0:00:01] White wants to mate with Qg5+.} c6 {[%emt 0:00:00]} 26. Rae1 {[%emt 0:00:06] White mates.} Bd8 {[%emt 0:00:04]} 27. Rxe6 {[%emt 0:00:08]} Rc7 {[%emt 0:00:04]} 28. Re8 {[%emt 0:00:09] Weighted Error Value: White=0.80/Black=1.66} (28. Qg5+ $142 Kh8 29. Re8 Qxe8 30. Bxe8 Rh7 31. Bg6 Bxf6 32. Qxf6+ Kg8 33. Bxh7+ Kxh7 34. Re1) 1-0